Cogmind - Beta 14 @@@ ROGUE MODE // 2025.01.17 @ 20:35:04 Player: K.Ioz Result: Smashed by cave-in Performance ------------- Evolutions (0) 0 Regions Visited (2) 400 Robots Destroyed (37) 185 Value Destroyed (1096) 1096 Prototype IDs (0) 0 Alien Tech Used (0) 0 Bonus (0) 0 TOTAL SCORE: 1681 Bonus ------- None Cogmind --------- Core Integrity 0/250 Matter 141/300 Energy 100/100 System Corruption 9% Temperature Cool (0) Movement Treading (160) Location -10/Subcaves Parts ------- > --- POWER (1) -------- (None) > --- PROPULSION (2) --- Improved Treads > --- UTILITY (2) ------ Subdweller Optics > --- WEAPON (2) ------- Light Cannon > --- INVENTORY (5) ---- Subdweller Power Source Subdweller Monowheel High-capacity Matter Pod (200) Heavy Assault Rifle Subdweller Machine Gun Peak State ------------ > --- POWER ------------ Subdweller Power Source > --- PROPULSION ------- Improved Treads Improved Treads > --- UTILITY ---------- Large Storage Unit Light Armor Plating > --- WEAPON ----------- Subdweller Machine Gun Subdweller Machine Gun > --- INVENTORY -------- Ion Engine Light Treads Improved Treads Improved Treads Heat Sink High-capacity Matter Pod Light Armor Plating Light Armor Plating Heavy Assault Rifle Heavy Assault Rifle Heavy Assault Rifle Light Cannon Light Cannon Light Cannon Light Cannon [Rating: 14] Favorites ----------- Power Ion Engine Engine Ion Engine Power Core Light Nuclear Core Propulsion Improved Treads Treads Improved Treads Utility Disposable Heat Sink Device Disposable Heat Sink Storage Large Storage Unit Hackware Authchip [Power] Protection Light Armor Plating Weapon Subdweller Machine Gun Energy Gun Medium Laser Ballistic Gun Subdweller Machine Gun Ballistic Cannon Light Cannon Build | -11 -10 -10 ------- Run | Yrd Mat Sub Slots Evolved . | . . . Power . | . . . Propulsion . | . . . Utility . | . . . Weapon . | . . . Parts Attached 42 | 6 10 26 Power 8 | 1 2 5 Engine 7 | 1 1 5 Core 1 | . 1 . Reactor . | . . . Propulsion 8 | 2 3 3 Treads 8 | 2 3 3 Leg . | . . . Wheel . | . . . Hover . | . . . Flight . | . . . Utility 9 | 1 4 4 Device 2 | . . 2 Storage 2 | 1 1 . Processor . | . . . Hackware 2 | . 2 . Protection 3 | . 1 2 Artifact . | . . . Weapon 17 | 2 1 14 Energy Gun 3 | 1 . 2 Energy Cannon . | . . . Ballistic Gun 10 | 1 1 8 Ballistic Cannon 4 | . . 4 Launcher . | . . . Special Weapon . | . . . Impact Weapon . | . . . Slashing Weapon . | . . . Piercing Weapon . | . . . Special Melee Weapon . | . . . Unidentified Prototypes . | . . . Parts Lost 15 | . 2 13 Power 2 | . . 2 Propulsion 4 | . 1 3 Utility 4 | . . 4 Weapon 5 | . 1 4 Highest Loss Streak 5 | . 2 5 To Critical Strikes . | . . . Average Slot Usage (%) 92 | . 96 91 Engine 13 | . 10 13 Treads 23 | . 25 22 Device 10 | . . 14 Storage 7 | . 20 2 Protection 7 | . 6 8 Energy Gun 4 | . 14 . Ballistic Gun 15 | . 14 15 Ballistic Cannon 8 | . . 11 Peak Build Rating 14 | 6 13 14 Average Rating 10 | 4 8 11 On Entrance 5 | . 6 11 Naked Turns . | . . . Heaviest Build 36 | 14 34 36 Greatest Support 46 | 40 46 46 Greatest Overweight (x) 1 | . 1 . Average Overweight (x) . | . . . Largest Inventory Capacity 15 | 8 15 15 Average Capacity 8 | 7 14 6 Most Carried 15 | 4 15 15 Average Carried 7 | 2 11 6 Final Capacity 15 | 8 15 15 Final Carried 15 | 4 15 15 Class Distribution -------------------- 100% | Mutant Dominant Class ---------------- Mutant | -10/Materials Mutant | -10/Subcaves Resources | -11 -10 -10 ----------- Run | Yrd Mat Sub Matter Collected 1692 | 182 572 938 Remotely . | . . . Salvage Created 1061 | . 548 513 Parts 77 | . 34 43 Haulers Intercepted 1 | . 1 . Recyclers Shooed . | . . . Parts Field Recycled . | . . . Retrieved Matter . | . . . Parts Self-Destructed 18 | . . 18 Prevented . | . . . Kills | -11 -10 -10 ------- Run | Yrd Mat Sub Combat Hostiles Destroyed 31 | . 12 19 Guns 25 | . 12 13 Cannons 6 | . . 6 Classes Destroyed 8 | . 5 3 Worker 1 | . 1 . Hauler 1 | . 1 . Turret 2 | . . 2 Watcher 2 | . 2 . Swarmer 7 | . 3 4 Grunt 10 | . 9 1 Sentry 1 | . . 1 Subdweller 13 | . . 13 Best Kill Streak 4 | . 4 3 Combat Bots Only 4 | . 4 2 Max Kills in Single Turn 1 | . 1 1 Gunslinging . | . . . Exploded . | . . . Melee . | . . . Uniques/NPCs Destroyed . | . . . Combat | -11 -10 -10 -------- Run | Yrd Mat Sub Hostile Shots Fired 230 | . 67 163 Missed 79 | . 17 62 Damage Taken 2613 | . 628 1985 Core 270 | . 84 186 Absorbed by Shields . | . . . Ignored by Resistances 6 | . . 6 Core Remaining (%) 100 | 100 . . Volleys Fired 216 | . 61 155 Largest 2 | . 2 2 Hottest 80 | . 70 80 Shots Fired 404 | . 122 282 Gun 282 | . 122 160 Cannon 122 | . . 122 Launcher . | . . . Special . | . . . Kinetic 341 | . 61 280 Thermal 63 | . 61 2 Explosive . | . . . Electromagnetic . | . . . Robot Hit Streak 14 | . 8 14 Robot Miss Streak 4 | . 3 4 Penetration Max . | . . . Secondary Targets 2 | . 1 1 Max Gunslinging Chain 1 | . 1 1 Shots Hit Robots 181 | . 88 93 Core Hits 64 | . 33 31 Critical Kills 1 | . . 1 Critical Parts Destroyed 1 | . 1 . Critical Strikes 9 | . 4 5 Burn 3 | . 3 . Destroy 3 | . 1 2 Blast 3 | . . 3 Melee Attacks . | . . . Impact . | . . . Slashing . | . . . Piercing . | . . . Sneak Attacks . | . . . Combat Hostiles . | . . . Follow-up Attacks . | . . . Damage Inflicted 2783 | . 991 1792 Guns 2049 | . 991 1058 Cannons 734 | . . 734 Explosions . | . . . Melee . | . . . Ramming . | . . . Kinetic 2280 | . 488 1792 Thermal 503 | . 503 . Explosive . | . . . Electromagnetic . | . . . Impact . | . . . Slashing . | . . . Piercing . | . . . Highest Corruption . | . . . Average Corruption . | . . . Corruption Purged . | . . . Corruption Blocked . | . . . Overload Shots . | . . . Overflow Damage . | . . . Projectiles . | . . . Explosions . | . . . Melee . | . . . Knockbacks 14 | . . 14 Impact . | . . . Kinetic 13 | . . 13 Secondary 1 | . . 1 Self-Inflicted Damage . | . . . Shots . | . . . Rammed . | . . . Targets Rammed . | . . . Kicked . | . . . Crushed . | . . . Highest Temperature 294 | . 294 215 Average Temperature 76 | . 75 90 Received Heat Transfer 1331 | . 315 1016 Effects 1 | . 1 . Energy Bleed 1 | . 1 . Siege Activations . | . . . Robots Corrupted . | . . . Combat Hostiles . | . . . Parts Fried . | . . . Impact Corruptions . | . . . Robots Melted . | . . . Combat Hostiles . | . . . Parts Melted 3 | . 3 . Heat Transferred 1702 | . 1702 . Parts Sabotaged . | . . . Parts Stolen . | . . . Parts Stripped . | . . . Power Chain Reactions . | . . . Alert | -11 -10 -10 ------- Run | Yrd Mat Sub Peak Influence 258 | . 258 . Initial . | . . . Average 96 | . 100 . Maximum Alert Level 1 | . 1 . Low Security (%) 97 | 100 97 . Level 1 2 | . 2 . Level 2 . | . . . Level 3 . | . . . Level 4 . | . . . Level 5 . | . . . High Security . | . . . Max Security . | . . . Squads Dispatched 3 | . 3 . Investigation 1 | . 1 . Extermination . | . . . Reinforcement 2 | . 2 . Assault . | . . . Garrison . | . . . Intercept . | . . . Searches Triggered . | . . . Construction Impeded . | . . . Haulers Reinforced . | . . . Active Scanning Responses . | . . . Cargo Convoy Interrupts . | . . . Stealth | -11 -10 -10 --------- Run | Yrd Mat Sub Distress Signals 2 | . 2 . Communications Jammed . | . . . Distress Signals . | . . . Times Spotted 56 | . 28 28 Peak Tracking Total 6 | . 6 6 Tactical Retreats 7 | . 4 3 Traps | -11 -10 -10 ------- Run | Yrd Mat Sub Traps Triggered 4 | . 1 3 Indirectly . | . . . Trap Hack Attempts . | . . . Triggered . | . . . Disarmed . | . . . Reprogrammed . | . . . Reused . | . . . Traps Extracted . | . . . Installed . | . . . Triggered 1 | . . 1 Machines | -11 -10 -10 ---------- Run | Yrd Mat Sub Machines Disabled 2 | . . 2 Max in Single Turn 1 | . . 1 Machines Repaired . | . . . Machines Dismantled . | . . . Machines Sabotaged . | . . . Overloaded Fab Kills . | . . . Hacking | -11 -10 -10 --------- Run | Yrd Mat Sub Machines Accessed 7 | . 6 1 Terminals 6 | . 6 . Fabricators . | . . . Repair Stations . | . . . Recycling Units . | . . . Scanalyzers . | . . . Garrison Access . | . . . Total Hacks 22 | . 19 3 Successful 14 | . 11 3 Failed 8 | . 8 . Catastrophic . | . . . Database Lockouts . | . . . Manual 15 | . 15 . Terminals 19 | . 19 . Fabricators . | . . . Repair Stations . | . . . Recycling Units . | . . . Scanalyzers . | . . . Garrison Access . | . . . Terminal Hacks 6 | . 3 3 Record 3 | . . 3 Locate Traps 1 | . 1 . Investigation Status 1 | . 1 . Hauler Manifests 1 | . 1 . Fabricator Hacks . | . . . Repair Station Hacks . | . . . Recycling Unit Hacks . | . . . Scanalyzer . | . . . Garrison Access Hacks . | . . . Unauthorized Hacks 8 | . 8 . Terminals 8 | . 8 . Track 1 | . 1 . Assimilate 1 | . 1 . Operators 1 | . 1 . Skim 5 | . 5 . Fabricators . | . . . Repair Stations . | . . . Recycling Units . | . . . Scanalyzers . | . . . Garrison Access . | . . . Data Cores Recovered . | . . . Used . | . . . Hacking Detections 6 | . 6 . Full Trace Events . | . . . Feedback Events . | . . . Feedback Blocked . | . . . Robot Schematics Acquired . | . . . Robots Built . | . . . Authchips . | . . . Time . | . . . Total Robot Build Rating . | . . . Part Schematics Acquired . | . . . Parts Built . | . . . Authchips . | . . . Time . | . . . Total Part Build Rating . | . . . Parts Repaired . | . . . Time . | . . . Parts Recycled . | . . . Recycled Matter . | . . . Retrieved Matter . | . . . Retrieved Components . | . . . Parts Scanalyzed . | . . . Part Schematics Acquired . | . . . Parts Damaged . | . . . Bothacking | -11 -10 -10 ------------ Run | Yrd Mat Sub Used RIF Installer . | . . . Robots Hacked . | . . . Non-combat . | . . . Combat . | . . . Robot Hacks Applied . | . . . Relay Couplers Released . | . . . Fabnet Peak Effective % . | . . . Robots Rewired . | . . . Allies Hacked . | . . . Hacks Repelled . | . . . Allies | -11 -10 -10 -------- Run | Yrd Mat Sub Total Allies . | . . . Largest Group . | . . . Highest-Rated Group . | . . . Highest-Rated Ally . | . . . Total Orders . | . . . Ally Attacks . | . . . Total Damage . | . . . Kills . | . . . Allies Corrupted . | . . . Allies Melted . | . . . Intel | -11 -10 -10 ------- Run | Yrd Mat Sub Robot Analysis Total . | . . . Derelict Logs Recovered 2 | . . 2 Drone Launches . | . . . Drone Recoveries . | . . . Exploration | -11 -10 -10 ------------- Run | Yrd Mat Sub Turns Passed 7992 | 94 2138 5760 Spaces Moved 3940 | 55 673 3212 Core 5 | 5 . . Treads 3935 | 50 673 3212 Legs . | . . . Wheels . | . . . Hover . | . . . Flight . | . . . Fastest Speed 50 | 50 160 160 Average Speed 162 | 150 173 160 Slowest Speed 240 | 160 240 160 Overloaded Moves . | . . . Propulsion Burnouts . | . . . Robots Hopped . | . . . Cave-ins Triggered 1 | . . 1 Exploration Rate (%) 64 | 4 92 98 Regions Visited 2 Branch Regions 1 Pre-discovered Areas 3 | . 1 2 Known Exits Taken 1 | . 1 . Unknown Exits Taken 1 | 1 . . Scrap Searched 7 | . . 7 Spaces Dug 6 | . . 6 Terrain Destroyed 8 | . . 8 Melee . | . . . Projectile 8 | . . 8 AOE . | . . . Terrain Rammed . | . . . Walls Destroyed . | . . . Machines Disabled . | . . . Actions | -11 -10 -10 --------- Run | Yrd Mat Sub Total 5140 | 64 1531 3545 Wait 882 | . 751 131 Move 3938 | 54 672 3212 Hop . | . . . Pick Up 29 | 4 21 4 Fast Attach 28 | 6 6 16 Attach 7 | . 2 5 Detach 3 | . 3 . Swap 7 | . 2 5 Drop 29 | . 13 16 Fire 216 | . 61 155 Melee . | . . . Ram . | . . . Kick . | . . . Crush . | . . . Escape Stasis . | . . . Rewire . | . . . Trap . | . . . Miscellaneous 1 | . . 1 Route ------- -11/Scrapyard -10/Materials (discovered 6 exits: *Mat x3 / [*Min x2] / *Sub) -10/Subcaves (discovered 3 exits: [*Mat x2] / [*Rec]) History --------- Turn | Location | Event 2 | -11/Scrapyard | Met Revision 17 5 | -11/Scrapyard | Discovered new exit (range 13) 95 | -11/Scrapyard | Entered Materials 247 | -10/Materials | Discovered new exit (range 13) 309 | -10/Materials | Build established: Mutant 437 | -10/Materials | Discovered new exit (range 13) 627 | -10/Materials | Discovered new exit (range 11) 683 | -10/Materials | Identified exit to Subcaves 683 | -10/Materials | Identified exit to Materials 728 | -10/Materials | Learned Storage stockpile data 763 | -10/Materials | Learned location of Mines (-9) 787 | -10/Materials | Learned location of 1 exit from Recycling 799 | -10/Materials | Learned 2 Mines zone layouts 800 | -10/Materials | Learned location of 1 exit from Storage 2233 | -10/Materials | Entered Subcaves 2317 | -10/Subcaves | Shifting Twisted Machinery released Sub. Machine Gun 2325 | -10/Subcaves | Learned location of Zion (-6) 2336 | -10/Subcaves | Shifting Twisted Machinery released Flamer 2561 | -10/Subcaves | Met a Zionite searching for "candidates" 2592 | -10/Subcaves | Discovered new exit (range 8) 2677 | -10/Subcaves | Learned 4 Materials zone layouts 3194 | -10/Subcaves | Lost 3 parts (1n1u1w) 3200 | -10/Subcaves | Discovered new exit (range 15) 4007 | -10/Subcaves | Discovered new exit (range 14) 4029 | -10/Subcaves | Core integrity fell below 50% 4725 | -10/Subcaves | A swath of the cavern ceiling suddenly collapsed 4999 | -10/Subcaves | Visited Clippyterm 5004 | -10/Subcaves | Learned Research security intel 5906 | -10/Subcaves | Core integrity fell below 20% 5936 | -10/Subcaves | Lost 5 parts (1p1n1u2w) 6505 | -10/Subcaves | Disturbed a concealed Subdweller 7975 | -10/Subcaves | Ambushed by Subdweller buried in earth 7994 | -10/Subcaves | Crushed by falling debris 7994 | -10/Subcaves | Smashed by cave-in Last Messages --------------- 07311_ Acquired 29 matter. 07570_ Acquired 35 matter. 07628_ Acquired 9 matter. 07634_ Acquired 18 matter. 07768_ Acquired 2 matter. 07770_ Acquired 5 matter. 07939_ Sub. Machine Gun shoots sparks and powers down. 07976_ 86-ABV(R): "ARGHSUB!" 07986_ 86-ABV(R) destroyed. 07992_ Acquired 49 matter. 07994_ Subatomizers dissect the Sub. Power Source. 07994_ The unstable cave ceiling collapses. 07994_ Crushed by falling debris. 07994_ Ion Engine destroyed. 07994_ System corrupted by crushing effect (+5). 07994_ Barrage Gun destroyed. 07994_ System corrupted by crushing effect (+3). 07994_ Disposable Heat Sink destroyed. 07994_ System corrupted by crushing effect (+1). Map ----- +----------------------------------------------------+ | ?????????????# ## ### #### #?####?????? | | ????????????## #### ####???????? | | ??????????###"""" "#"# ^ #???????? | | ??????????#""" #???????? | | ??????????#"" % #??????## | | ??????????#""" ## ## ##?????## | | ??????????##""" ####### ###?????#### | | ???????????#" # ###??## #????## | | ???????????## #????# #???## | | ??????????## # #????# #######% | | ??????????# " ###??# ##?# | | ??????????# #??## ## ##?## ### | | ??????????# #???## ######### #???# | | ??????????## ##??# #????## #?### # | | ??????????## """" #??## #???## ### # | | ??????????# """" ##??# #??## | | ??????????# """" ##???## ##??# |% | | ??????????# ""#####????# #???# ## | | ??????????## ##????????# ###???# ### | | ??????????## ##????????# #????# #?# ### ## | | ??????????# ##???????######### ### ##?##### | | ??????????## #??????????# # #?????## | | ???????????## ######???#### #?##### | | ???????????# # # ##### ## #### | | ???????????# # #&&## # # #?# | | ???????????# ## *@&%##### #?## | | ???????????# ## # ###&![##???# #?## | | ???????????# ###### # ####????# ##??## | | ???????????# ##????## ##???????## ##????## | | ???????????# ##?????###?????????## ###??????### | | ???????????# #??????????????????#####??????????? | | ???????????# ##?????????????????????????????????? | | ??????????## #??###????????????????????????????? | | ??????????# ##??# ##???????????????????????????? | | ??????????# ##?## ##??????????????????????????? | | ??????????## ### #??????????????????????????? | | ??????????# #??????????????????????????? | | ??????????# ## #??????????????????????????? | | ??????????### ### #??????????????????????????? | | ????????????###### ##??????????????????????????? | | ??????????????### ##???????????????????????????? | | ???????????#### ##????????????????????????????? | | ??????????## ##????????????????????????????? | | ??????????# #????????????????????????????? | | ??????????# ##???????????????????????????? | | ??????????# #?????????????????###???????? | | ??????????# ##???????????????## ##??????? | | ??????????## ### #??????????????## #??????? | | ???????????##### #??????????????# #??????? | | ???????????## ##??????????????# #??????? | +----------------------------------------------------+ Best States ------------- Heat Dissipation 25 Coolant Potential 50 Energy Generation 15 Energy Capacity 250 Matter Stores 300 Matter Capacity 300 Sight Range 21 Terrain Scan Density 10 Armor Coverage 800 Resistance: TH 10 Evasion (%) 40 Recoil Reduction 2 Item Schematics ----------------- None Robot Schematics ------------------ None Fabricated ------------ Nothing Alien Tech Used ----------------- None Achievements -------------- None Challenges ------------ None Game ------ Seed WavePotentialSaw Manual? 0 Play Time 00:43:41 Cumulative 279.4 hours Start 2025.01.17 @ 17:27:42 End 2025.01.17 @ 20:35:04 Sessions 2 Manual Loads 0 Difficulty Rogue Special Mode None Game No. 183 Rogue 144 Adventurer 6 Explorer 33 Win Type - Total 6 Types 5/0/1/0/0/0/0/0/0 Lore% 52 Gallery% 71 Achievement% 65 Wizard Run 0 Options --------- Layout 2 ASCII 1 Keyboard 1 Movement Vi Keybinds 0 Fullscreen 1 Font 16/T_Terminus Map View 53x45 Zoom Use 1% Tactical HUD 1 Map Filters NONE Filters LOW_CONTRAST(47,30,31) Steam 1 RUN: 58feac87-2e4c-47f3-94ed-40005de49d09